fUST/lending_fUST_20250709
["ID","MTS","AMOUNT","RATE_DAILY","PERIOD"]
[370438766,1752018666858,-192.232343,0.00021369,2]
[370438767,1752018666869,-206.72417044,0.00021369,2]
[370438768,1752018666879,-460.0,0.00021369,2]
[370438769,1752018666889,-460.0,0.00021369,2]
[370438770,1752018666900,-460.0,0.00021369,2]
[370438771,1752018666910,-460.0,0.00021369,2]
[370438772,1752018666920,-151.0,0.00021369,2]
[370438773,1752018666929,-151.0,0.00021369,2]
[370438774,1752018666939,-460.0,0.00021369,2]
[370438775,1752018666948,-151.0,0.00021369,2]
[370438776,1752018666957,-460.0,0.00021369,2]
[370438777,1752018666967,-650.33,0.00021369,2]
[370438778,1752018666976,-177.894703,0.00021369,2]
[370438779,1752018666986,-177.894703,0.00021369,2]
[370438780,1752018666995,-460.0,0.00021369,2]
[370438781,1752018667005,-151.0,0.00021369,2]
[370438782,1752018667015,-653.48,0.00021369,2]
[370438783,1752018667024,-460.0,0.00021369,2]
[370438784,1752018667033,-617.57,0.00021369,2]
[370438785,1752018667043,-460.0,0.00021369,2]
[370438786,1752018667052,-460.0,0.00021369,2]
[370438787,1752018667062,-1065.97,0.00021369,2]
[370438788,1752018667071,-460.0,0.00021369,2]
[370438789,1752018667080,-460.0,0.00021369,2]
[370438790,1752018667090,-460.0,0.00021369,2]
[370438791,1752018667101,-460.0,0.00021369,2]
[370438792,1752018667110,-519.69,0.00021369,2]
[370438793,1752018667120,-460.0,0.00021369,2]
[370438794,1752018667130,-460.0,0.00021369,2]
[370438795,1752018667142,-948.41,0.00021369,2]
[370438796,1752018667151,-460.0,0.00021369,2]
[370438797,1752018667161,-460.0,0.00021369,2]
[370438798,1752018667171,-460.0,0.00021369,2]
[370438799,1752018667180,-460.0,0.00021369,2]
[370438800,1752018667190,-2747.84,0.00021369,2]
[370438801,1752018667200,-1311.66,0.00021369,2]
[370438802,1752018667209,-460.0,0.00021369,2]
[370438803,1752018667219,-460.0,0.00021369,2]
[370438804,1752018667228,-460.0,0.00021369,2]
[370438805,1752018667339,-460.0,0.00021369,2]
[370438806,1752018667349,-460.0,0.00021369,2]
[370438807,1752018667358,-471.44,0.00021369,2]
[370438808,1752018667368,-460.0,0.00021369,2]
[370438809,1752018667378,-1016.8,0.00021369,2]
[370438810,1752018667388,-3697.16,0.00021369,2]
[370438811,1752018667398,-460.0,0.00021369,2]
[370438812,1752018667407,-1141.78,0.00021369,2]
[370438813,1752018667416,-460.0,0.00021369,2]
[370438814,1752018667426,-460.0,0.00021369,2]
[370438815,1752018667435,-1898.64,0.00021369,2]
[370438816,1752018667445,-460.0,0.00021369,2]
[370438817,1752018667454,-460.0,0.00021369,2]
[370438818,1752018667464,-460.0,0.00021369,2]
[370438819,1752018667474,-460.0,0.00021369,2]
[370438820,1752018667483,-460.0,0.00021369,2]
[370438821,1752018667493,-460.0,0.00021369,2]
[370438822,1752018667502,-460.0,0.00021369,2]
[370438823,1752018667512,-460.0,0.00021369,2]
[370438824,1752018667522,-460.0,0.00021369,2]
[370438825,1752018667532,-1208.7,0.00021369,2]
[370438826,1752018667541,-2092.85,0.00021369,2]
[370438827,1752018667551,-460.0,0.00021369,2]
[370438828,1752018667560,-776.83,0.00021369,2]
[370438829,1752018667571,-594.75,0.00021369,2]
[370438830,1752018667581,-1858.42,0.00021369,2]
[370438831,1752018667590,-1123.29,0.00021369,2]
[370438832,1752018667600,-460.0,0.00021369,2]
[370438833,1752018667610,-677.06,0.00021369,2]
[370438834,1752018667619,-460.0,0.00021369,2]
[370438835,1752018667628,-460.0,0.00021369,2]
[370438836,1752018667638,-460.0,0.00021369,2]
[370438837,1752018667648,-460.0,0.00021369,2]
[370438838,1752018667658,-1744.98,0.00021369,2]
[370438839,1752018667667,-460.0,0.00021369,2]
[370438840,1752018667677,-876.27,0.00021369,2]
[370438841,1752018667686,-460.0,0.00021369,2]
[370438842,1752018667696,-460.0,0.00021369,2]
[370438843,1752018667705,-460.0,0.00021369,2]
[370438844,1752018667714,-460.0,0.00021369,2]
[370438845,1752018667723,-460.0,0.00021369,2]
[370438846,1752018667733,-1764.03,0.00021369,2]
[370438847,1752018667742,-562.78,0.00021369,2]
[370438848,1752018667752,-523.79,0.00021369,2]
[370438849,1752018667763,-731.73,0.00021369,2]
[370438850,1752018667773,-3342.7,0.00021369,2]
[370438851,1752018667783,-460.0,0.00021369,2]
[370438852,1752018667792,-1171.73,0.00021369,2]
[370438853,1752018667802,-460.0,0.00021369,2]
[370438854,1752018667811,-460.0,0.00021369,2]
[370438855,1752018667820,-868.56,0.00021369,2]
[370438856,1752018667830,-460.0,0.00021369,2]
[370438857,1752018667840,-613.93,0.00021369,2]
[370438858,1752018667851,-460.0,0.00021369,2]
[370438859,1752018667862,-168.0,0.00021384,2]
[370438860,1752018667872,-2000.0,0.00021416,2]
[370438861,1752018667882,-163.082623,0.00021478,4]
[370438862,1752018667891,-2390.84432941,0.000215,2]
[370438863,1752018667900,-151.0,0.000216,3]
[370438864,1752018667910,-168.0,0.00021614,2]
[370438865,1752018667919,-2000.0,0.00021616,2]
[370438866,1752018667929,-500.0,0.00021616,2]
[370438867,1752018667938,-460.0,0.00021643,2]
[370438868,1752018667947,-460.0,0.00021643,2]
[370438869,1752018667959,-460.0,0.00021643,2]
[370438870,1752018667969,-460.0,0.00021643,2]
[370438871,1752018667979,-188.123731,0.00021643,2]
[370438872,1752018667990,-151.0,0.00021643,2]
[370438873,1752018668001,-460.0,0.00021643,2]
[370438874,1752018668010,-460.0,0.00021643,2]
[370438875,1752018668020,-460.0,0.00021643,2]
[370438876,1752018668031,-460.0,0.00021643,2]
[370438877,1752018668041,-460.0,0.00021643,2]
[370438878,1752018668051,-460.0,0.00021643,2]
[370438879,1752018668061,-460.0,0.00021643,2]
[370438880,1752018668070,-460.0,0.00021643,2]
[370438881,1752018668081,-151.0,0.00021643,2]
[370438882,1752018668092,-234.539944,0.00021643,2]
[370438883,1752018668102,-460.0,0.00021643,2]
[370438884,1752018668112,-460.0,0.00021643,2]
[370438885,1752018668122,-151.0,0.00021643,2]
[370438886,1752018668133,-486.41,0.00021643,2]
[370438887,1752018668143,-600.62262217,0.00021643,2]
[370438888,1752018668153,-460.0,0.00021643,2]
[370438889,1752018668163,-460.0,0.00021643,2]
[370438890,1752018668172,-460.0,0.00021643,2]
[370438891,1752018668182,-604.3,0.00021643,2]
[370438892,1752018668193,-645.77,0.00021643,2]
[370438893,1752018668202,-460.0,0.00021643,2]
[370438894,1752018668214,-526.95,0.00021643,2]
[370438895,1752018668225,-460.0,0.00021643,2]
[370438896,1752018668234,-204.51,0.00021643,2]
[370438897,1752018668244,-525.20988328,0.00021643,2]
[370438898,1752018668253,-168.777223,0.00021643,2]
[370438899,1752018668262,-168.777223,0.00021643,2]
[370438900,1752018668272,-460.0,0.00021643,2]
[370438901,1752018668282,-460.0,0.00021643,2]
[370438902,1752018668291,-460.0,0.00021643,2]
[370438903,1752018668302,-460.0,0.00021643,2]
[370438904,1752018668312,-460.0,0.00021643,2]
[370438905,1752018668321,-650.33,0.00021643,2]
[370438906,1752018668330,-460.0,0.00021643,2]
[370438907,1752018668340,-653.48,0.00021643,2]
[370438908,1752018668350,-460.0,0.00021643,2]
[370438909,1752018668359,-617.57,0.00021643,2]
[370438910,1752018668369,-460.0,0.00021643,2]
[370438911,1752018668378,-234.723998,0.00021643,2]
[370438912,1752018668387,-234.723998,0.00021643,2]
[370438913,1752018668397,-460.0,0.00021643,2]
[370438914,1752018668407,-1065.97,0.00021643,2]
[370438915,1752018668417,-460.0,0.00021643,2]
[370438916,1752018668427,-460.0,0.00021643,2]
[370438917,1752018668437,-460.0,0.00021643,2]
[370438918,1752018668446,-460.0,0.00021643,2]
[370438919,1752018668456,-519.69,0.00021643,2]
[370438920,1752018668465,-460.0,0.00021643,2]
[370438921,1752018668475,-948.41,0.00021643,2]
[370438922,1752018668485,-460.0,0.00021643,2]
[370438923,1752018668494,-460.0,0.00021643,2]
[370438924,1752018668503,-460.0,0.00021643,2]
[370438925,1752018668513,-460.0,0.00021643,2]
[370438926,1752018668522,-151.0,0.00021643,2]
[370438927,1752018668533,-2747.84,0.00021643,2]
[370438928,1752018668542,-1311.66,0.00021643,2]
[370438929,1752018668552,-460.0,0.00021643,2]
[370438930,1752018668562,-460.0,0.00021643,2]
[370438931,1752018668572,-460.0,0.00021643,2]
[370438932,1752018668583,-460.0,0.00021643,2]
[370438933,1752018668592,-460.0,0.00021643,2]
[370438934,1752018668602,-471.44,0.00021643,2]
[370438935,1752018668611,-1016.8,0.00021643,2]
[370438936,1752018668621,-3697.16,0.00021643,2]
[370438937,1752018668631,-1141.78,0.00021643,2]
[370438938,1752018668641,-460.0,0.00021643,2]
[370438939,1752018668650,-460.0,0.00021643,2]
[370438940,1752018668660,-1898.64,0.00021643,2]
[370438941,1752018668669,-460.0,0.00021643,2]
[370438942,1752018668679,-460.0,0.00021643,2]
[370438943,1752018668688,-460.0,0.00021643,2]
[370438944,1752018668697,-460.0,0.00021643,2]
[370438945,1752018668707,-460.0,0.00021643,2]
[370438946,1752018668716,-681.83161,0.00021643,2]
[370438947,1752018668725,-460.0,0.00021643,2]
[370438948,1752018668734,-681.83161,0.00021643,2]
[370438949,1752018668744,-460.0,0.00021643,2]
[370438950,1752018668753,-460.0,0.00021643,2]
[370438951,1752018668762,-460.0,0.00021643,2]
[370438952,1752018668772,-1208.7,0.00021643,2]
[370438953,1752018668781,-2092.85,0.00021643,2]
[370438954,1752018668791,-319.3,0.00021643,2]
[370438955,1752018668800,-776.83,0.00021643,2]
[370438956,1752018668810,-594.75,0.00021643,2]
[370438957,1752018668819,-1858.42,0.00021643,2]
[370438958,1752018668911,-1123.29,0.00021643,2]
[370438959,1752018668931,-460.0,0.00021643,2]
[370438960,1752018668941,-677.06,0.00021643,2]
[370438961,1752018668950,-460.0,0.00021643,2]
[370438962,1752018668959,-460.0,0.00021643,2]
[370438963,1752018668969,-460.0,0.00021643,2]
[370438964,1752018668978,-460.0,0.00021643,2]
[370438965,1752018668987,-1744.98,0.00021643,2]
[370438966,1752018668996,-460.0,0.00021643,2]
[370438967,1752018669006,-460.0,0.00021643,2]
[370438968,1752018669015,-876.27,0.00021643,2]
[370438969,1752018669025,-460.0,0.00021643,2]
[370438970,1752018669034,-460.0,0.00021643,2]
[370438971,1752018669043,-460.0,0.00021643,2]
[370438972,1752018669053,-460.0,0.00021643,2]
[370438973,1752018669063,-1764.03,0.00021643,2]
[370438974,1752018669072,-562.78,0.00021643,2]
[370438975,1752018669081,-523.79,0.00021643,2]
[370438976,1752018669090,-731.73,0.00021643,2]
[370438977,1752018669100,-3342.7,0.00021643,2]
[370438978,1752018669109,-460.0,0.00021643,2]
[370438979,1752018669118,-1171.73,0.00021643,2]
[370438980,1752018669127,-460.0,0.00021643,2]
[370438981,1752018669141,-460.0,0.00021643,2]
[370438982,1752018669151,-868.56,0.00021643,2]
[370438983,1752018669160,-204.62,0.00021643,2]
[370438984,1752018669169,-613.93,0.00021643,2]
[370438985,1752018669179,-460.0,0.00021643,2]
[370438986,1752018669188,-168.0,0.0002175,2]
[370438987,1752018669197,-168.0,0.00021772,2]
[370438988,1752018669206,-178.372249,0.0002181,2]
[370438989,1752018669216,-926.75408083,0.00021837,2]
[370438990,1752018669226,-501.7701239,0.00021837,2]
[370438991,1752018669236,-500.0,0.00021837,2]
[370438992,1752018669245,-12500.0,0.00021855,2]
[370438993,1752018669254,-151.0,0.00021864,2]
[370438994,1752018669264,-151.0,0.00021864,2]
[370438995,1752018669274,-151.0,0.00021864,2]
[370438996,1752018669283,-151.0,0.00021864,2]
[370438997,1752018669292,-151.0,0.00021864,2]
[370438998,1752018669302,-12500.0,0.00021864,2]
[370438999,1752018669311,-151.0,0.00021873,2]
[370439000,1752018669320,-12500.0,0.00021873,2]
[370439001,1752018669330,-12500.0,0.00021882,2]
[370439002,1752018669339,-256.463535,0.00021882,2]
[370439003,1752018669350,-192.232343,0.00021882,2]
[370439004,1752018669360,-192.232343,0.00021882,2]
[370439005,1752018669369,-151.0,0.00021882,2]
[370439006,1752018669379,-151.0,0.00021882,2]
[370439007,1752018669388,-256.010827,0.00021882,2]
[370439008,1752018669398,-177.894703,0.00021882,2]
[370439009,1752018669407,-177.894703,0.00021882,2]
[370439010,1752018669416,-151.0,0.00021882,2]
[370439011,1752018669426,-11995.55427491,0.00021891,2]
[370439013,1752019039837,2873.18,0.00027397,120]
[370439014,1752019291114,200.0,0.00026018,120]
[370439015,1752019351109,200.0,0.00026901,120]
[370439016,1752019373142,1000.0,0.0002465,60]
[370439017,1752019411283,200.0,0.00026139,120]
[370439018,1752019471054,200.0,0.00027065,120]
[370439021,1752019501141,573.262015,0.00013699,2]
[370439023,1752019532081,200.0,0.00026422,120]
[370439025,1752019651107,200.0,0.00025423,120]
[370439026,1752019711230,200.0,0.00024186,120]
[370439028,1752019771118,200.0,0.00024364,120]
[370439029,1752019831125,200.0,0.00025055,120]
[370439052,1752019832469,-250.519,0.00018246,2]
[370439055,1752019832479,-424.82628675,0.00019,2]
[370439057,1752019832488,-515.92690438,0.00019078,2]
[370439060,1752019832498,-569.02,0.00019168,3]
[370439062,1752019832509,-504.8074354,0.00019173,2]
[370439064,1752019832519,-1103.28581028,0.00019177,2]
[370439066,1752019832529,-300.0,0.00019177,2]
[370439068,1752019832538,-460.0,0.00019178,2]
[370439070,1752019832548,-460.0,0.00019178,2]
[370439072,1752019832557,-491.86356585,0.00019178,2]
[370439074,1752019832569,-460.0,0.00019178,2]
[370439076,1752019832578,-346.95434428,0.00019178,2]
[370439082,1752019832628,-114.60932346,0.00019178,2]
[370439084,1752019832638,-460.0,0.00019178,2]
[370439087,1752019832656,-460.0,0.00019178,2]
[370439090,1752019832673,-274.50189263,0.00019178,2]
[370439092,1752019832686,-185.49810737,0.00019178,2]
[370439094,1752019832696,-400.92544617,0.00019178,2]
[370439097,1752019832717,-29.01268514,0.00019178,2]
[370439099,1752019832727,-462.13907283,0.00019178,2]
[370439101,1752019832737,-460.0,0.00019178,2]
[370439103,1752019832746,-460.0,0.00019178,2]
[370439105,1752019832756,-460.0,0.00019178,2]
[370439107,1752019832765,-19.02833191,0.00019178,2]
[370439145,1752019838757,-440.97166809,0.00019178,2]
[370439147,1752019838766,-605.05102575,0.00019178,2]
[370439148,1752019838775,-447.78716073,0.00019178,2]
[370439149,1752019838785,-460.0,0.00019178,2]
[370439151,1752019838794,-387.85280169,0.00019178,2]
[370439153,1752019838804,-460.0,0.00019178,2]
[370439155,1752019838813,-460.0,0.00019178,2]
[370439157,1752019838822,-460.0,0.00019178,2]
[370439159,1752019838831,-479.21105357,0.00019178,2]
[370439161,1752019838840,-460.0,0.00019178,2]
[370439164,1752019838849,-460.49459647,0.00019178,2]
[370439166,1752019838858,-460.0,0.00019178,2]
[370439168,1752019838868,-169.00538143,0.00019178,2]
[370439170,1752019838878,-460.0,0.00019178,2]
[370439172,1752019838887,-460.0,0.00019178,2]
[370439174,1752019838896,-460.0,0.00019178,2]
[370439176,1752019838905,-460.0,0.00019178,2]
[370439178,1752019838914,-460.0,0.00019178,2]
[370439180,1752019838923,-460.0,0.00019178,2]
[370439182,1752019838933,-496.81061569,0.00019178,2]
[370439184,1752019838942,-460.0,0.00019178,2]
[370439186,1752019838951,-460.0,0.00019178,2]
[370439188,1752019838960,-460.0,0.00019178,2]
[370439190,1752019838970,-460.0,0.00019178,2]
[370439192,1752019838979,-462.0637753,0.00019178,2]
[370439194,1752019838988,-460.0,0.00019178,2]
[370439196,1752019838997,-460.0,0.00019178,2]
[370439198,1752019839006,-503.63774006,0.00019178,2]
[370439199,1752019839016,-460.0,0.00019178,2]
[370439201,1752019839026,-460.0,0.00019178,2]
[370439203,1752019839035,-460.0,0.00019178,2]
[370439206,1752019839045,-460.0,0.00019178,2]
[370439207,1752019839055,-460.0,0.00019178,2]
[370439210,1752019839067,-460.0,0.00019178,2]
[370439212,1752019839077,-460.0,0.00019178,2]
[370439214,1752019839087,-460.0,0.00019178,2]
[370439216,1752019839096,-460.0,0.00019178,2]
[370439218,1752019839105,-461.19412951,0.00019178,2]
[370439220,1752019839115,-340.94330859,0.00019178,2]
[370439221,1752019839124,-460.0,0.00019178,2]
[370439224,1752019839134,-461.59009056,0.00019178,2]
[370439225,1752019839144,-460.0,0.00019178,2]
[370439227,1752019839153,-460.0,0.00019178,2]
[370439229,1752019839163,-500.0,0.00019178,2]
[370439232,1752019839173,-461.19336382,0.00019178,2]
[370439234,1752019839183,-460.0,0.00019178,2]
[370439235,1752019839193,-460.0,0.00019178,2]
[370439238,1752019839203,-455.62823303,0.00019178,2]
[370439239,1752019839212,-460.0,0.00019178,2]
[370439241,1752019839221,-460.0,0.00019178,2]
[370439243,1752019839231,-460.21681655,0.00019178,2]
[370439245,1752019839240,-518.98669409,0.00019178,2]
[370439247,1752019839250,-460.0,0.00019178,2]
[370439249,1752019839259,-460.0,0.00019178,2]
[370439251,1752019839268,-460.0,0.00019178,2]
[370439253,1752019839277,-460.0,0.00019178,2]
[370439255,1752019839286,-460.0,0.00019178,2]
[370439257,1752019839295,-454.17462625,0.00019178,2]
[370439259,1752019839304,-460.0,0.00019178,2]
[370439261,1752019839313,-460.0,0.00019178,2]
[370439263,1752019839322,-460.0,0.00019178,2]
[370439265,1752019839332,-460.0,0.00019178,2]
[370439267,1752019839341,-460.0,0.00019178,2]
[370439269,1752019839350,-460.0,0.00019178,2]
[370439271,1752019839359,-460.0,0.00019178,2]
[370439273,1752019839369,-460.70542833,0.00019178,2]
[370439275,1752019839378,-460.0,0.00019178,2]
[370439277,1752019839388,-460.0,0.00019178,2]
[370439279,1752019839397,-460.0,0.00019178,2]
[370439282,1752019839407,-460.0,0.00019178,2]
[370439284,1752019839416,-460.0,0.00019178,2]
[370439286,1752019839426,-1000.0,0.00019178,2]
[370439288,1752019839436,-460.0,0.00019178,2]
[370439289,1752019839445,-460.0,0.00019178,2]
[370439291,1752019839454,-460.0,0.00019178,2]
[370439293,1752019839464,-460.0,0.00019178,2]
[370439295,1752019839474,-608.3128538,0.00019178,2]
[370439298,1752019839483,-460.0,0.00019178,2]
[370439300,1752019839492,-460.0,0.00019178,2]
[370439302,1752019839502,-460.0,0.00019178,2]
[370439304,1752019839511,-390.85349495,0.00019178,2]
[370439306,1752019839520,-460.0,0.00019178,2]
[370439308,1752019839529,-375.96554626,0.00019178,2]
[370439310,1752019839539,-460.0,0.00019178,2]
[370439312,1752019839547,-441.785092,0.00019178,2]
[370439315,1752019839567,-460.0,0.00019178,2]
[370439317,1752019839577,-460.0,0.00019178,2]
[370439319,1752019839587,-460.0,0.00019178,2]
[370439321,1752019839597,-460.0,0.00019178,2]
[370439323,1752019839607,-460.0,0.00019178,2]
[370439325,1752019839616,-460.0,0.00019178,2]
[370439327,1752019839625,-460.0,0.00019178,2]
[370439329,1752019839635,-460.0,0.00019178,2]
[370439331,1752019839646,-460.0,0.00019178,2]
[370439333,1752019839659,-460.0,0.00019178,2]
[370439335,1752019839670,-460.0,0.00019178,2]
[370439337,1752019839680,-460.68604966,0.00019178,2]
[370439340,1752019839691,-460.0,0.00019178,2]
[370439342,1752019839700,-460.0,0.00019178,2]
[370439344,1752019839710,-460.0,0.00019178,2]
[370439346,1752019839720,-460.0,0.00019178,2]
[370439348,1752019839729,-460.0,0.00019178,2]
[370439350,1752019839739,-460.0,0.00019178,2]
[370439352,1752019839748,-460.0,0.00019178,2]
[370439354,1752019839758,-460.0,0.00019178,2]
[370439356,1752019839767,-460.0,0.00019178,2]
[370439358,1752019839776,-460.0,0.00019178,2]
[370439360,1752019839786,-460.0,0.00019178,2]
[370439362,1752019839795,-460.0,0.00019178,2]
[370439364,1752019839805,-460.0,0.00019178,2]
[370439366,1752019839814,-460.0,0.00019178,2]
[370439368,1752019839823,-460.0,0.00019178,2]
[370439370,1752019839833,-460.0,0.00019178,2]
[370439372,1752019839843,-460.0,0.00019178,2]
[370439374,1752019839854,-460.0,0.00019178,2]
[370439376,1752019839864,-460.0,0.00019178,2]
[370439378,1752019839874,-460.0,0.00019178,2]
[370439380,1752019839883,-460.0,0.00019178,2]
[370439382,1752019839893,-460.0,0.00019178,2]
[370439384,1752019839903,-460.0,0.00019178,2]
[370439386,1752019839912,-460.0,0.00019178,2]
[370439388,1752019839922,-460.0,0.00019178,2]
[370439390,1752019839931,-460.0,0.00019178,2]
[370439392,1752019839942,-460.0,0.00019178,2]
[370439394,1752019839951,-460.0,0.00019178,2]
[370439396,1752019839961,-460.0,0.00019178,2]
[370439398,1752019839971,-460.0,0.00019178,2]
[370439400,1752019839981,-460.0,0.00019178,2]
[370439402,1752019839991,-460.0,0.00019178,2]
[370439404,1752019840001,-460.0,0.00019178,2]
[370439406,1752019840010,-460.0,0.00019178,2]
[370439408,1752019840020,-503.59,0.00019178,2]
[370439410,1752019840030,-460.0,0.00019178,2]
[370439413,1752019840041,-460.0,0.00019178,2]
[370439415,1752019840051,-461.17921217,0.00019178,2]
[370439417,1752019840060,-460.0,0.00019178,2]
[370439420,1752019840070,-460.0,0.00019178,2]
[370439422,1752019840080,-370.0,0.00019178,2]
[370439425,1752019840089,-460.0,0.00019178,2]
[370439427,1752019840099,-460.0,0.00019178,2]
[370439428,1752019840108,-538.14,0.00019178,2]
[370439431,1752019840117,-460.0,0.00019178,2]
[370439433,1752019840127,-460.0,0.00019178,2]
[370439435,1752019840137,-460.0,0.00019178,2]
[370439437,1752019840146,-460.0,0.00019178,2]
[370439439,1752019840156,-460.0,0.00019178,2]
[370439441,1752019840166,-460.0,0.00019178,2]
[370439443,1752019840175,-500.0,0.00019178,2]
[370439445,1752019840185,-460.0,0.00019178,2]
[370439447,1752019840194,-460.0,0.00019178,2]
[370439449,1752019840204,-460.0,0.00019178,2]
[370439451,1752019840213,-460.0,0.00019178,2]
[370439453,1752019840223,-460.0,0.00019178,2]
[370439455,1752019840234,-468.18712179,0.00019178,2]
[370439457,1752019840244,-460.0,0.00019178,2]
[370439459,1752019840253,-460.0,0.00019178,2]
[370439461,1752019840263,-460.0,0.00019178,2]
[370439463,1752019840272,-460.0,0.00019178,2]
[370439465,1752019840282,-460.0,0.00019178,2]
[370439467,1752019840291,-460.0,0.00019178,2]
[370439469,1752019840302,-460.0,0.00019178,2]
[370439471,1752019840312,-460.0,0.00019178,2]
[370439473,1752019840321,-270.13,0.00019178,2]
[370439475,1752019840331,-460.0,0.00019178,2]
[370439477,1752019840341,-495.97,0.00019178,2]
[370439479,1752019840350,-460.0,0.00019178,2]
[370439481,1752019840359,-460.0,0.00019178,2]
[370439483,1752019840369,-460.0,0.00019178,2]
[370439485,1752019840379,-460.0,0.00019178,2]
[370439487,1752019840388,-460.0,0.00019178,2]
[370439489,1752019840398,-460.0,0.00019178,2]
[370439491,1752019840408,-460.0,0.00019178,2]
[370439493,1752019840418,-460.0,0.00019178,2]
[370439495,1752019840428,-460.0,0.00019178,2]
[370439497,1752019840438,-460.0,0.00019178,2]
[370439499,1752019840448,-460.0,0.00019178,2]
[370439501,1752019840457,-460.0,0.00019178,2]
[370439503,1752019840466,-460.0,0.00019178,2]
[370439505,1752019840476,-564.19,0.00019178,2]
[370439507,1752019840485,-460.0,0.00019178,2]
[370439509,1752019840494,-223.08476342,0.00019178,2]
[370439511,1752019840504,-460.0,0.00019178,2]
[370439513,1752019840513,-460.0,0.00019178,2]
[370439515,1752019840523,-460.0,0.00019178,2]
[370439517,1752019840533,-460.0,0.00019178,2]
[370439519,1752019840542,-460.0,0.00019178,2]
[370439521,1752019840552,-460.0,0.00019178,2]
[370439523,1752019840561,-460.0,0.00019178,2]
[370439525,1752019840571,-460.0,0.00019178,2]
[370439527,1752019840581,-460.0,0.00019178,2]
[370439529,1752019840591,-460.0,0.00019178,2]
[370439531,1752019840600,-460.0,0.00019178,2]
[370439533,1752019840610,-460.0,0.00019178,2]
[370439535,1752019840619,-460.0,0.00019178,2]
[370439537,1752019840633,-460.0,0.00019178,2]
[370439539,1752019840643,-460.0,0.00019178,2]
[370439541,1752019840657,-319.84061839,0.00019178,2]
[370439543,1752019840667,-460.0,0.00019178,2]
[370439545,1752019840676,-460.0,0.00019178,2]
[370439547,1752019840686,-460.0,0.00019178,2]
[370439549,1752019840698,-460.0,0.00019178,2]
[370439551,1752019840709,-460.0,0.00019178,2]
[370439553,1752019840719,-460.0,0.00019178,2]
[370439555,1752019840731,-502.62,0.00019178,2]
[370439557,1752019840740,-460.0,0.00019178,2]
[370439559,1752019840749,-541.94,0.00019178,2]
[370439561,1752019840759,-460.0,0.00019178,2]
[370439563,1752019840768,-566.24,0.00019178,2]
[370439565,1752019840778,-460.0,0.00019178,2]
[370439567,1752019840787,-460.0,0.00019178,2]
[370439569,1752019840797,-460.0,0.00019178,2]
[370439571,1752019840807,-460.0,0.00019178,2]
[370439573,1752019840816,-460.0,0.00019178,2]
[370439575,1752019840826,-460.0,0.00019178,2]
[370439577,1752019840835,-460.0,0.00019178,2]
[370439579,1752019840845,-460.0,0.00019178,2]
[370439581,1752019840855,-460.0,0.00019178,2]
[370439583,1752019840864,-460.0,0.00019178,2]